fUST/lending_fUST_20260503
["ID","MTS","AMOUNT","RATE_DAILY","PERIOD"]
[421514563,1777803032000,-593.0,0.00012264,2]
[421514559,1777803032000,-5000.0,0.00012141,2]
[421514557,1777803032000,-780.72022952,0.00012041,2]
[421514561,1777803032000,-173.79292292,0.00012264,2]
[421514556,1777803032000,-1490.76148749,0.0001202,2]
[421514586,1777803038000,-500.0,0.00013159,2]
[421514580,1777803038000,-874.66241498,0.00012387,2]
[421514583,1777803038000,-300.0,0.00012388,2]
[421514582,1777803038000,-300.0,0.00012388,2]
[421514584,1777803038000,-300.0,0.00012388,2]
[421514585,1777803038000,-274.11581197,0.00012704,2]
[421514587,1777803038000,-500.0,0.00013159,2]
[421514581,1777803038000,-300.0,0.00012388,2]
[421514589,1777803038000,-500.0,0.00013159,2]
[421514591,1777803038000,-484.0996698,0.00013159,2]
[421514592,1777803038000,-331.0,0.00013594,2]
[421514595,1777803038000,-1000.0,0.00013699,2]
[421514596,1777803038000,-200.0,0.00013699,2]
[421514593,1777803038000,-420.0,0.00013594,2]
[421514590,1777803038000,-500.0,0.00013159,2]
[421514594,1777803038000,-1680.0,0.00013626,2]
[421514588,1777803038000,-500.0,0.00013159,2]
[421514597,1777803039000,-1000.0,0.00013699,2]
[421514598,1777803039000,-160.0,0.00013975,2]
[421514599,1777803039000,-300.85387509,0.00014,2]
[421514603,1777803039000,-160.0,0.00014359,2]
[421514602,1777803039000,-300.85387509,0.000143,2]
[421514601,1777803039000,-300.85387509,0.000141,2]
[421514604,1777803039000,-300.85387509,0.000144,2]
[421514605,1777803039000,-1153.57032349,0.0001458,2]
[421514612,1777803039000,-18527.55325907,0.00015,2]
[421514606,1777803039000,-300.85387509,0.000146,2]
[421514608,1777803039000,-324.2096086,0.00014759,2]
[421514609,1777803039000,-244.6811084,0.000149,2]
[421514611,1777803039000,-1964.0,0.00014988,2]
[421514610,1777803039000,-180.0,0.00014917,2]
[421514613,1777803039000,-34504.52164934,0.00015,2]
[421514614,1777803039000,-1751.73676825,0.00015,2]
[421514615,1777803039000,-10235.58178745,0.00015,2]
[421514607,1777803039000,-323.45665812,0.00014704,2]
[421514624,1777803042000,-1201.70836448,0.00012263,2]
[421514623,1777803042000,-1197.10362736,0.00012263,2]
[421514628,1777803042000,-6718.501097,0.00015,2]
[421514625,1777803042000,-623.8679506,0.00012263,2]
[421514627,1777803042000,-8644.38283162,0.00015,2]
[421514626,1777803042000,-1977.32005756,0.00012263,2]
[421514703,1777803044000,-1771.49898391,0.00015,2]
[421514706,1777803044000,-657.5484785,0.00015,2]
[421514701,1777803044000,-9742.05342553,0.00015,2]
[421514724,1777803044000,-10700.67679089,0.00015,2]
[421514722,1777803044000,-400.0,0.00015,2]
[421514708,1777803044000,-7649.64680441,0.00015,2]
[421514899,1777803047000,-300.0,0.00015299,2]
[421514893,1777803047000,-300.0,0.00015299,2]
[421514895,1777803047000,-300.0,0.00015299,2]
[421514897,1777803047000,-300.0,0.00015299,2]
[421514901,1777803047000,-300.0,0.00015299,2]
[421514903,1777803047000,-300.0,0.00015299,2]
[421514905,1777803047000,-300.0,0.00015299,2]
[421514907,1777803047000,-300.0,0.00015299,2]
[421514912,1777803047000,-300.0,0.00015299,2]
[421514919,1777803047000,-600.0,0.00015299,2]
[421514914,1777803047000,-300.0,0.00015299,2]
[421514923,1777803047000,-291.2970718,0.00015375,2]
[421514916,1777803047000,-300.0,0.00015299,2]
[421514910,1777803047000,-300.0,0.00015299,2]
[421514918,1777803047000,-300.0,0.00015299,2]
[421514889,1777803047000,-153.64631427,0.00015276,2]
[421514909,1777803047000,-300.0,0.00015299,2]
[421514891,1777803047000,-300.0,0.00015299,2]
[421514863,1777803047000,-161.29,0.00015,2]
[421514884,1777803047000,-151.5,0.00015276,2]
[421514925,1777803047000,-537.6845,0.00015375,2]
[421514846,1777803047000,-21517.27361881,0.00015,2]
[421514848,1777803047000,-7199.29956112,0.00015,2]
[421514871,1777803047000,-152.0,0.00015032,7]
[421514873,1777803047000,-151.0,0.000151,2]
[421514861,1777803047000,-22302.53770791,0.00015,2]
[421514869,1777803047000,-152.0,0.00015032,7]
[421514887,1777803047000,-170.49069566,0.00015276,2]
[421514876,1777803047000,-793.0,0.000152,2]
[421514867,1777803047000,-424.0,0.00015,2]
[421514875,1777803047000,-244.6811084,0.0001515,2]
[421514877,1777803047000,-822.0,0.00015224,2]
[421514878,1777803047000,-505.9535,0.00015275,2]
[421514882,1777803047000,-151.5,0.00015276,2]
[421514880,1777803047000,-151.5,0.00015276,2]
[421514885,1777803047000,-151.5,0.00015276,2]
[421514865,1777803047000,-151.0,0.00015,2]
[421514921,1777803047000,-151.0,0.000153,2]
[421514966,1777803047000,-165.55598906,0.00015662,2]
[421514929,1777803047000,-162.380719,0.00015375,2]
[421514968,1777803047000,-151.0,0.000157,2]
[421514973,1777803047000,-646.0,0.00015741,2]
[421514975,1777803047000,-2212.0,0.00015741,2]
[421514979,1777803047000,-590.28,0.0001579,2]
[421514977,1777803047000,-1408.0,0.00015741,2]
[421514980,1777803047000,-1421.177,0.000158,2]
[421514982,1777803047000,-1421.17,0.000158,2]
[421514984,1777803047000,-165.55598906,0.00015851,7]
[421514986,1777803047000,-151.0,0.000159,2]
[421514990,1777803047000,-445.202766,0.00015923,2]
[421514994,1777803047000,-2230.315306,0.00015923,2]
[421514992,1777803047000,-557.5788265,0.00015923,2]
[421514996,1777803047000,-500.0,0.00015955,2]
[421514999,1777803047000,-500.0,0.00015955,2]
[421515001,1777803047000,-500.0,0.00015955,2]
[421514971,1777803047000,-296.10755969,0.00015705,2]
[421515003,1777803047000,-500.0,0.00015955,2]
[421514988,1777803047000,-244.6811084,0.000159,2]
[421514962,1777803047000,-244.6811084,0.0001565,2]
[421514964,1777803047000,-644.79446246,0.0001565,2]
[421514933,1777803047000,-537.6845,0.00015375,2]
[421514935,1777803047000,-2150.738,0.00015375,2]
[421514937,1777803047000,-157.37628278,0.00015375,2]
[421514931,1777803047000,-445.202766,0.00015375,2]
[421514940,1777803047000,-244.6811084,0.000154,2]
[421514938,1777803047000,-151.0,0.000154,2]
[421514942,1777803047000,-557.5788265,0.0001543,2]
[421514927,1777803047000,-162.380719,0.00015375,2]
[421514944,1777803047000,-2253.12392383,0.0001548,2]
[421514946,1777803047000,-578.20924308,0.00015485,2]
[421514950,1777803047000,-599.60298507,0.0001554,2]
[421514948,1777803047000,-829.0,0.00015517,2]
[421514954,1777803047000,-292.86372454,0.000156,2]
[421514952,1777803047000,-621.78829552,0.00015595,2]
[421514956,1777803047000,-151.0,0.000156,2]
[421514958,1777803047000,-153.374,0.00015611,2]
[421514960,1777803047000,-151.4890125,0.00015622,2]
[421515014,1777803048000,-522.48911512,0.00015955,2]
[421515016,1777803048000,-155.0,0.00015999,2]
[421515007,1777803048000,-500.0,0.00015955,2]
[421515012,1777803048000,-500.0,0.00015955,2]
[421515010,1777803048000,-500.0,0.00015955,2]
[421515018,1777803048000,-19189.92349682,0.00016,2]
[421515009,1777803048000,-500.0,0.00015955,2]
[421515005,1777803048000,-500.0,0.00015955,2]
[421515052,1777803262000,167.273053,7.308e-05,2]
[421515067,1777804043000,165.414461,4.998e-05,2]
[421515066,1777804043000,165.414461,4.748e-05,2]
[421515065,1777804043000,165.414461,4.498e-05,2]
[421515064,1777804043000,165.414461,4.249e-05,2]
[421515068,1777804043000,165.414461,5.248e-05,2]
[421515073,1777804044000,165.414461,6.248e-05,2]
[421515072,1777804044000,165.414461,5.998e-05,2]
[421515071,1777804044000,165.414461,5.748e-05,2]
[421515070,1777804044000,159.759819,5.498e-05,2]
[421515069,1777804044000,5.654642,5.498e-05,2]
[421515074,1777804044000,165.414461,6.498e-05,2]
[421515075,1777804045000,165.414461,6.748e-05,2]
[421515078,1777804045000,165.414461,7.248e-05,2]
[421515077,1777804045000,152.246585,6.998e-05,2]
[421515076,1777804045000,13.167876,6.998e-05,2]
[421515079,1777804046000,165.414461,7.497e-05,2]
[421515081,1777804046000,165.414461,7.997e-05,2]
[421515080,1777804046000,165.414461,7.747e-05,2]
[421515104,1777804202000,1000.0,8.011e-05,2]
[421515103,1777804202000,1000.0,8.011e-05,2]
[421515101,1777804202000,1000.0,8.011e-05,2]
[421515102,1777804202000,1000.0,8.011e-05,2]
[421515100,1777804202000,186.095571,8.011e-05,2]
[421515105,1777804208000,-245.50619459,8.011e-05,2]
[421515142,1777804231000,-384.768375,8.011e-05,2]
[421515276,1777804238000,-500.0,0.00011135,2]
[421515235,1777804238000,-500.0,0.00011135,2]
[421515231,1777804238000,-500.0,0.00011135,2]
[421515229,1777804238000,-500.0,0.00011135,2]
[421515227,1777804238000,-500.0,0.00011135,2]
[421515216,1777804238000,-1200.0,9.701e-05,2]
[421515212,1777804238000,-300.0,9.317e-05,2]
[421515220,1777804238000,-428.9510045,0.00010618,2]
[421515233,1777804238000,-500.0,0.00011135,2]
[421515222,1777804238000,-167.273053,0.00010962,2]
[421515225,1777804238000,-326.26416366,0.00011135,2]
[421515248,1777804238000,-500.0,0.00011135,2]
[421515239,1777804238000,-335.57942625,0.00011135,2]
[421515241,1777804238000,-500.0,0.00011135,2]
[421515237,1777804238000,-500.0,0.00011135,2]
[421515250,1777804238000,-500.0,0.00011135,2]
[421515214,1777804238000,-300.0,9.317e-05,2]
[421515246,1777804238000,-500.0,0.00011135,2]
[421515252,1777804238000,-500.0,0.00011135,2]
[421515254,1777804238000,-500.0,0.00011135,2]
[421515256,1777804238000,-500.0,0.00011135,2]
[421515258,1777804238000,-500.0,0.00011135,2]
[421515270,1777804238000,-500.0,0.00011135,2]
[421515272,1777804238000,-494.59668791,0.00011135,2]
[421515274,1777804238000,-500.0,0.00011135,2]
[421515244,1777804238000,-500.0,0.00011135,2]
[421515218,1777804238000,-335.10676699,0.00010417,2]
[421515201,1777804238000,-300.0,9.317e-05,2]
[421515206,1777804238000,-300.0,9.317e-05,2]
[421515155,1777804238000,-183.62985941,8.011e-05,2]
[421515157,1777804238000,-5000.0,8.165e-05,2]
[421515168,1777804238000,-283.98878559,8.417e-05,2]
[421515161,1777804238000,-300.0,8.373e-05,2]
[421515159,1777804238000,-165.414461,8.247e-05,2]
[421515165,1777804238000,-300.0,8.373e-05,2]
[421515163,1777804238000,-300.0,8.373e-05,2]
[421515170,1777804238000,-165.414461,8.497e-05,2]
[421515172,1777804238000,-501.5950004,8.718e-05,2]
[421515174,1777804238000,-1200.0,8.819e-05,2]
[421515176,1777804238000,-206.8839263,8.82e-05,2]
[421515210,1777804238000,-300.0,9.317e-05,2]
[421515178,1777804238000,-167.273053,9.135e-05,2]
[421515180,1777804238000,-300.0,9.21e-05,2]
[421515195,1777804238000,-300.0,9.317e-05,2]
[421515193,1777804238000,-300.0,9.317e-05,2]
[421515197,1777804238000,-300.0,9.317e-05,2]
[421515199,1777804238000,-300.0,9.317e-05,2]
[421515190,1777804238000,-300.0,9.317e-05,2]
[421515189,1777804238000,-300.0,9.317e-05,2]
[421515184,1777804238000,-300.0,9.317e-05,2]
[421515186,1777804238000,-300.0,9.317e-05,2]
[421515205,1777804238000,-300.0,9.317e-05,2]
[421515203,1777804238000,-300.0,9.317e-05,2]
[421515182,1777804238000,-300.0,9.21e-05,2]
[421515260,1777804238000,-500.0,0.00011135,2]
[421515322,1777804238000,-67087.9441809,0.00011136,2]
[421515268,1777804238000,-500.0,0.00011135,2]
[421515328,1777804238000,-386.2247484,0.00012417,2]
[421515333,1777804238000,-1856.44046755,0.000129,2]
[421515335,1777804238000,-1000.0,0.00013699,2]
[421515336,1777804238000,-1000.0,0.00013699,2]
[421515262,1777804238000,-500.0,0.00011135,2]
[421515337,1777804238000,-181.66510441,0.00013809,2]
[421515341,1777804238000,-437.34272981,0.00014417,2]
[421515347,1777804238000,-270.64297941,0.00015132,2]
[421515348,1777804238000,-537.6845,0.00015132,2]
[421515345,1777804238000,-160.0,0.00014944,2]
[421515343,1777804238000,-167.273053,0.00014616,2]
[421515354,1777804238000,-163.97579235,0.00015276,2]
[421515350,1777804238000,-2150.738,0.00015132,2]
[421515356,1777804238000,-23815.7631093,0.00015299,2]
[421515352,1777804238000,-151.5,0.00015276,2]
[421515358,1777804238000,-160.0,0.00015551,2]
[421515360,1777804238000,-206.26152253,0.000156,2]
[421515362,1777804238000,-600.0,0.00015604,2]
[421515374,1777804238000,-324053.73044693,0.00016,2]
[421515368,1777804238000,-206.26152253,0.000158,2]
[421515366,1777804238000,-2230.315306,0.0001568,2]
[421515377,1777804238000,-2958.53080738,0.00016,2]
[421515372,1777804238000,-68570.06750558,0.000159,2]
[421515370,1777804238000,-151.0,0.000159,2]
[421515364,1777804238000,-557.5788265,0.0001568,2]
[421515320,1777804238000,-500.0,0.00011135,2]
[421515332,1777804238000,-1856.44046755,0.000129,2]
[421515339,1777804238000,-176.747651,0.00013987,2]
[421515330,1777804238000,-167.273053,0.00012789,2]
[421515266,1777804238000,-500.0,0.00011135,2]
[421515264,1777804238000,-500.0,0.00011135,2]
[421515282,1777804238000,-500.0,0.00011135,2]
[421515278,1777804238000,-500.0,0.00011135,2]
[421515280,1777804238000,-190.58309861,0.00011135,2]
[421515286,1777804238000,-500.0,0.00011135,2]
[421515296,1777804238000,-500.0,0.00011135,2]
[421515298,1777804238000,-500.0,0.00011135,2]
[421515300,1777804238000,-500.0,0.00011135,2]
[421515302,1777804238000,-500.0,0.00011135,2]
[421515288,1777804238000,-500.0,0.00011135,2]
[421515290,1777804238000,-500.0,0.00011135,2]
[421515284,1777804238000,-500.0,0.00011135,2]
[421515292,1777804238000,-500.0,0.00011135,2]
[421515304,1777804238000,-500.0,0.00011135,2]
[421515306,1777804238000,-500.0,0.00011135,2]
[421515308,1777804238000,-500.0,0.00011135,2]
[421515310,1777804238000,-500.0,0.00011135,2]
[421515312,1777804238000,-500.0,0.00011135,2]
[421515326,1777804238000,-1412.6628328,0.00011684,2]
[421515324,1777804238000,-4016.5907919,0.00011186,2]
[421515314,1777804238000,-500.0,0.00011135,2]
[421515316,1777804238000,-500.0,0.00011135,2]
[421515318,1777804238000,-500.0,0.00011135,2]
[421515294,1777804238000,-500.0,0.00011135,2]
[421515474,1777804240000,-1856.44046755,0.00013255,2]
[421515482,1777804240000,-1917.85952668,0.00016,2]
[421515476,1777804240000,-534.0,0.000154,2]
[421515483,1777804240000,-772.73702623,0.00016,2]
[421515478,1777804240000,-1718.81254604,0.00016,2]
[421515637,1777804246000,-5000.0,0.0001107,2]
[421515640,1777804246000,-272.47218241,0.00011181,2]
[421515652,1777804246000,-500.0,0.00011181,2]
[421515638,1777804246000,-637.43569369,0.00011181,2]
[421515646,1777804246000,-227.52781759,0.00011181,2]
[421515658,1777804246000,-500.0,0.00011181,2]
[421515648,1777804246000,-500.0,0.00011181,2]
[421515650,1777804246000,-500.0,0.00011181,2]
[421515661,1777804246000,-500.0,0.00011181,2]
[421515666,1777804246000,-245.44782647,0.00011181,2]
[421515680,1777804246000,-1856.44046755,0.00014365,2]
[421515660,1777804246000,-500.0,0.00011181,2]
[421515674,1777804246000,-500.0,0.00011181,2]
[421515682,1777804246000,-80672.99749887,0.00016,2]
[421515678,1777804246000,-500.0,0.00011181,2]
[421515676,1777804246000,-500.0,0.00011181,2]
[421515654,1777804246000,-421.59176394,0.00011181,2]
[421515672,1777804246000,-500.0,0.00011181,2]
[421515668,1777804246000,-500.0,0.00011181,2]
[421515656,1777804246000,-500.0,0.00011181,2]
[421515664,1777804246000,-500.0,0.00011181,2]
[421515670,1777804246000,-500.0,0.00011181,2]
[421515738,1777804249000,5000.0,0.0001,2]
[421515740,1777804251000,80205.88739948,7.6e-05,2]
[421515758,1777804267000,25187.36284557,7.857e-05,2]
[421515760,1777804757000,604.0144,0.00021908,120]
[421515762,1777804779000,604.0144,0.00021908,120]
[421515763,1777804787000,603.3726,0.00021908,120]
[421515765,1777804835000,7552.6768127,7.992e-05,2]
[421515766,1777804836000,603.6935,0.00021908,120]
[421515767,1777804842000,603.6935,0.00021908,120]
[421515768,1777804851000,603.6935,0.00021908,120]
[421515769,1777804858000,603.6935,0.00021908,120]
[421515770,1777804893000,219.8530128,7.387e-05,2]
[421515771,1777804894000,603.6935,0.00021908,120]
[421515772,1777804900000,603.6935,0.00021908,120]
[421515773,1777804906000,187.345817,3.679e-05,2]
[421515775,1777804906000,187.345817,5.518e-05,2]
[421515776,1777804906000,187.345817,6.438e-05,2]
[421515774,1777804906000,187.345817,4.598e-05,2]
[421515777,1777804907000,187.345817,7.358e-05,2]
[421515778,1777804932000,603.6935,0.00021908,120]
[421515779,1777804941000,603.6935,0.00021908,120]
[421515780,1777804992000,603.6935,0.00021908,120]
[421515781,1777804998000,603.6935,0.00021908,120]
[421515782,1777805029000,5000.0,8.01e-05,2]
[421515783,1777805051000,5000.0,8.01e-05,2]
[421515784,1777805060000,300.0,7.353e-05,2]
[421515785,1777805073000,5000.0,8.01e-05,2]
[421515786,1777805094000,5000.0,8.01e-05,2]
[421515787,1777805116000,5000.0,8.01e-05,2]
[421515788,1777805138000,5000.0,8.01e-05,2]
[421515789,1777805160000,5000.0,8.01e-05,2]
[421515790,1777805181000,5000.0,8.01e-05,2]
[421515791,1777805204000,5000.0,8.01e-05,2]
[421515792,1777805212000,2293.54258223,8.01e-05,2]
[421515793,1777805229000,5000.0,8.01e-05,2]
[421515794,1777805239000,51909.6186186,7.358e-05,2]
[421515796,1777805250000,5000.0,8.01e-05,2]
[421515797,1777805272000,5000.0,8.01e-05,2]
[421515798,1777805294000,5000.0,8.01e-05,2]
[421515799,1777805316000,5000.0,8.01e-05,2]
[421515800,1777805339000,5000.0,8.01e-05,2]
[421515812,1777805361000,5000.0,8.01e-05,2]
[421515815,1777805375000,29081.948932,7.358e-05,2]
[421515816,1777805384000,5000.0,8.01e-05,2]
[421515817,1777805406000,4085.73181049,8.01e-05,2]
[421515863,1777805438000,-500.0,8.353e-05,2]
[421515864,1777805438000,-500.0,8.353e-05,2]
[421515871,1777805438000,-166.23521674,8.353e-05,2]
[421515870,1777805438000,-500.0,8.353e-05,2]
[421515866,1777805438000,-500.0,8.353e-05,2]
[421515875,1777805438000,-500.0,8.353e-05,2]
[421515876,1777805438000,-500.0,8.353e-05,2]
[421515867,1777805438000,-500.0,8.353e-05,2]
[421515872,1777805438000,-500.0,8.353e-05,2]
[421515868,1777805438000,-500.0,8.353e-05,2]
[421515861,1777805438000,-500.0,8.353e-05,2]
[421515865,1777805438000,-500.0,8.353e-05,2]
[421515869,1777805438000,-500.0,8.353e-05,2]
[421515874,1777805438000,-500.0,8.353e-05,2]
[421515858,1777805438000,-500.0,8.353e-05,2]
[421515859,1777805438000,-500.0,8.353e-05,2]
[421515862,1777805438000,-500.0,8.353e-05,2]
[421515860,1777805438000,-586.6674702,8.353e-05,2]
[421515857,1777805438000,-500.0,8.353e-05,2]
[421515856,1777805438000,-500.0,8.353e-05,2]
[421515853,1777805438000,-500.0,8.353e-05,2]
[421515855,1777805438000,-500.0,8.353e-05,2]
[421515852,1777805438000,-500.0,8.353e-05,2]
[421515850,1777805438000,-313.51592305,8.353e-05,2]
[421515849,1777805438000,-500.0,8.353e-05,2]
[421515848,1777805438000,-598.00402032,8.353e-05,2]
[421515847,1777805438000,-12560.647239,8.14e-05,2]
[421515845,1777805438000,-1200.0,8.139e-05,2]
[421515846,1777805438000,-298.67186927,8.14e-05,2]
[421515844,1777805438000,-300.0,8.139e-05,2]
[421515854,1777805438000,-500.0,8.353e-05,2]
[421515877,1777805438000,-500.0,8.353e-05,2]
[421515873,1777805438000,-500.0,8.353e-05,2]
[421515884,1777805438000,-75100.0199074,8.354e-05,2]
[421515878,1777805438000,-267.51940688,8.353e-05,2]
[421515905,1777805438000,-300.0,8.52e-05,2]
[421515902,1777805438000,-500.0,8.467e-05,2]
[421515904,1777805438000,-12560.647239,8.483e-05,2]
[421515907,1777805438000,-300.0,8.52e-05,2]
[421515906,1777805438000,-300.0,8.52e-05,2]
[421515903,1777805438000,-2000.0,8.471e-05,2]
[421515910,1777805438000,-300.0,8.52e-05,2]
[421515901,1777805438000,-500.0,8.467e-05,2]
[421515898,1777805438000,-500.0,8.467e-05,2]
[421515900,1777805438000,-500.0,8.467e-05,2]
[421515909,1777805438000,-300.0,8.52e-05,2]
[421515899,1777805438000,-500.0,8.467e-05,2]
[421515894,1777805438000,-500.0,8.467e-05,2]
[421515895,1777805438000,-500.0,8.467e-05,2]
[421515908,1777805438000,-300.0,8.52e-05,2]
[421515892,1777805438000,-500.0,8.467e-05,2]
[421515896,1777805438000,-582.70665861,8.467e-05,2]
[421515880,1777805438000,-500.0,8.353e-05,2]
[421515888,1777805438000,-500.0,8.467e-05,2]
[421515879,1777805438000,-500.0,8.353e-05,2]
[421515883,1777805438000,-500.0,8.353e-05,2]
[421515889,1777805438000,-500.0,8.467e-05,2]
[421515881,1777805438000,-500.0,8.353e-05,2]
[421515882,1777805438000,-500.0,8.353e-05,2]
[421515897,1777805438000,-500.0,8.467e-05,2]
[421515886,1777805438000,-232.9480264,8.37e-05,2]
[421515891,1777805438000,-194.08564416,8.467e-05,2]
[421515887,1777805438000,-163.3773257,8.37e-05,2]
[421515893,1777805438000,-500.0,8.467e-05,2]
[421515885,1777805438000,-2864.447688,8.37e-05,2]
[421515890,1777805438000,-500.0,8.467e-05,2]
[421515943,1777805439000,-500.0,0.00010959,2]
[421515956,1777805439000,-406.19374221,0.0001214,2]
[421515946,1777805439000,-500.0,0.00010959,2]
[421515951,1777805439000,-1000.0,0.00011341,2]
[421515942,1777805439000,-500.0,0.00010959,2]
[421515944,1777805439000,-500.0,0.00010959,2]
[421515947,1777805439000,-500.0,0.00010959,2]
[421515948,1777805439000,-500.0,0.00010959,2]
[421515945,1777805439000,-271.13949539,0.00010959,2]
[421515952,1777805439000,-151.0,0.000115,2]
[421515963,1777805439000,-2658.75273896,0.000129,2]
[421515953,1777805439000,-1412.32459695,0.00011578,2]
[421515950,1777805439000,-500.0,0.00011181,2]
[421515973,1777805439000,-569.34590002,0.0001349,2]
[421515955,1777805439000,-151.0,0.000121,2]
[421515954,1777805439000,-1152.0,0.00011917,2]
[421515957,1777805439000,-2780.83084203,0.00012282,2]
[421515960,1777805439000,-151.0,0.000126,2]
[421515961,1777805439000,-500.0,0.00012848,2]
[421515959,1777805439000,-244.0,0.00012475,2]
[421515962,1777805439000,-2658.75273898,0.000129,2]
[421515970,1777805439000,-160.0,0.00013373,2]
[421515964,1777805439000,-2658.75273896,0.000129,2]
[421515969,1777805439000,-160.0,0.00013373,2]
[421515968,1777805439000,-151.0,0.000132,2]
[421515941,1777805439000,-15000.0,0.00010959,2]
[421515958,1777805439000,-1000.0,0.00012475,2]
[421515938,1777805439000,-823.0,0.00010833,2]
[421515926,1777805439000,-32676.21695632,9.425e-05,2]
[421515940,1777805439000,-151.0,0.00010959,2]
[421515918,1777805439000,-300.0,8.52e-05,2]
[421515911,1777805439000,-300.0,8.52e-05,2]
[421515919,1777805439000,-300.0,8.52e-05,2]
[421515912,1777805439000,-300.0,8.52e-05,2]
[421515922,1777805439000,-420.0,8.953e-05,2]
[421515913,1777805439000,-300.0,8.52e-05,2]
[421515916,1777805439000,-300.0,8.52e-05,2]
[421515914,1777805439000,-300.0,8.52e-05,2]
[421515917,1777805439000,-300.0,8.52e-05,2]
[421515920,1777805439000,-600.0,8.52e-05,2]
[421515915,1777805439000,-300.0,8.52e-05,2]
[421515921,1777805439000,-12560.647239,8.826e-05,2]
[421515923,1777805439000,-1680.0,8.953e-05,2]
[421515929,1777805439000,-2351.0,9.848e-05,2]
[421515925,1777805439000,-720.0,9.372e-05,2]
[421515931,1777805439000,-151.0,9.976e-05,2]
[421515924,1777805439000,-12560.647239,9.168e-05,2]
[421515937,1777805439000,-250.0,0.00010411,2]
[421515935,1777805439000,-352.43280574,0.0001014,2]
[421515930,1777805439000,-12560.647239,9.854e-05,2]
[421515933,1777805439000,-5990.07676037,0.0001,2]
[421515934,1777805439000,-676.32475577,0.0001,2]
[421515928,1777805439000,-587.0,9.848e-05,2]
[421515927,1777805439000,-12560.647239,9.511e-05,2]
[421515932,1777805439000,-8798.05614394,0.0001,2]
[421515936,1777805439000,-864.0,0.0001031,2]
[421515939,1777805439000,-2190.0,0.00010833,2]
[421515949,1777805439000,-500.0,0.00010959,2]
[421515966,1777805439000,-2955.49042294,0.00012985,2]
[421515981,1777805439000,-500.0,0.00013698,2]
[421515972,1777805439000,-200.0,0.00013384,2]
[421516001,1777805439000,-152.44,0.00014108,2]
[421516007,1777805439000,-151.0,0.000143,2]
[421516017,1777805439000,-154.3,0.00014814,2]
[421516018,1777805439000,-200.0,0.00014863,2]
[421516006,1777805439000,-380.81633233,0.000143,2]
[421516009,1777805439000,-3400.29652098,0.00014393,2]
[421516008,1777805439000,-200.0,0.0001437,2]
[421516016,1777805439000,-151.0,0.000148,2]
[421516015,1777805439000,-153.27,0.00014618,2]
[421516010,1777805439000,-380.81633233,0.000144,2]
[421516011,1777805439000,-1071.37,0.00014487,2]
[421516012,1777805439000,-12201.0431814,0.0001457,2]
[421516013,1777805439000,-2000.0,0.00014598,7]
[421516019,1777805439000,-188901.97039712,0.00014896,2]
[421516022,1777805439000,-167.511169,0.00015068,2]
[421516021,1777805439000,-2150.738,0.00014924,2]
[421516020,1777805439000,-558.31491658,0.00014924,2]
[421516024,1777805439000,-791.0,0.00015094,2]
[421516026,1777805439000,-839.0,0.00015158,2]
[421516025,1777805439000,-3622.69957008,0.00015097,2]
[421516027,1777805439000,-151.0,0.000152,2]
[421516030,1777805439000,-189.85731787,0.00015276,2]
[421516029,1777805439000,-151.5,0.00015276,2]
[421516028,1777805439000,-164.02470756,0.00015276,2]
[421516023,1777805439000,-1000.0,0.00015094,2]
[421516031,1777805439000,-151.5,0.00015276,2]
[421515971,1777805439000,-160.0,0.00013373,2]